{"text_format":"1","workbook":"xlsx","n_sheets":2,"sheets":["Condition 1","Condition 2"],"not_rendered":{"charts":0,"images":0,"macros":0,"external_links":0,"defined_names":4,"comments":0,"pivot_tables":0},"unopened":[],"bounds":{"document_bytes":16777216,"sheet_cells":100000,"rows_first":2000,"rows_last":500,"rows_between":2000,"halvings":0,"cell_chars":16384,"cell_head_chars":4096},"cells_cut":0,"cells_raw":0,"read":"whole","date_system":"1900"}

{"sheet":"Condition 1","index":0,"n_rows":669,"n_cols":66,"rows_kept":669,"cut":false,"hidden":false,"merged":[]}
["Name1",null,null,"Name2","LOOKUP from Name1",null,null,null,null,null,null,null,null,null,null,null,null,null,null,null,null,null,null,null,null,null,null,null,null,null,null,null,null,null,null,null,null,null,null,null,null,null,null,null,null,null,null,null,null,null,null,null,null,null,null,null,null,null,null,null,null,null,null,null,null,{"$f":"AND($D$2:$D$60<>\"\",ISERROR(FIND(LOWER($D$2:$D$60),LOWER(A1)))=FALSE)","v":false}]
["Panipat - Jalandhar",null,null,"Delhi - Gurgaon EXPY",{"$f":"INDEX(A$1:A$500,MAX(IFERROR(MATCH(\"*\"&LEFT(MID(TRIM(D2),2,10),{1,2,3,4,5,6,7,8,9,10})&\"*\",SUBSTITUTE(A$1:A$500,\" \",\"\"),0),\"\")))","v":"Belgaum - Dharwad"}]
["Allahabad Bypass – Varanasi",null,null,"Delhi - Gurgaon EXPY",{"$f":"INDEX(A$1:A$500,MAX(IFERROR(MATCH(\"*\"&LEFT(MID(TRIM(D3),2,10),{1,2,3,4,5,6,7,8,9,10})&\"*\",SUBSTITUTE(A$1:A$500,\" \",\"\"),0),\"\")))","v":"Belgaum - Dharwad"}]
["Allahabad Bypass – Varanasi",null,null,"Gurgaon - Kotputli",{"$f":"INDEX(A$1:A$500,MAX(IFERROR(MATCH(\"*\"&LEFT(MID(TRIM(D4),2,10),{1,2,3,4,5,6,7,8,9,10})&\"*\",SUBSTITUTE(A$1:A$500,\" \",\"\"),0),\"\")))","v":"Gurgaon-Kotputli-Jaipur"}]
["Allahabad Bypass – Varanasi",null,null,"Gurgaon - Kotputli",{"$f":"INDEX(A$1:A$500,MAX(IFERROR(MATCH(\"*\"&LEFT(MID(TRIM(D5),2,10),{1,2,3,4,5,6,7,8,9,10})&\"*\",SUBSTITUTE(A$1:A$500,\" \",\"\"),0),\"\")))","v":"Gurgaon-Kotputli-Jaipur"}]
["Allahabad Bypass – Varanasi",null,null,"Kotputli - Amer",{"$f":"INDEX(A$1:A$500,MAX(IFERROR(MATCH(\"*\"&LEFT(MID(TRIM(D6),2,10),{1,2,3,4,5,6,7,8,9,10})&\"*\",SUBSTITUTE(A$1:A$500,\" \",\"\"),0),\"\")))","v":"Gurgaon-Kotputli-Jaipur"}]
["Allahabad Bypass – Varanasi",null,null,"Amer - Jaipur",{"$f":"INDEX(A$1:A$500,MAX(IFERROR(MATCH(\"*\"&LEFT(MID(TRIM(D7),2,10),{1,2,3,4,5,6,7,8,9,10})&\"*\",SUBSTITUTE(A$1:A$500,\" \",\"\"),0),\"\")))","v":"Name1"}]
["Aurangabad - Barwa Adda in Bihar and Jharkhand",null,null,"Jaipur - Kishangarh",{"$f":"INDEX(A$1:A$500,MAX(IFERROR(MATCH(\"*\"&LEFT(MID(TRIM(D8),2,10),{1,2,3,4,5,6,7,8,9,10})&\"*\",SUBSTITUTE(A$1:A$500,\" \",\"\"),0),\"\")))","v":"Kishangarh - Udaipur - Ahmedabad"}]
["Aurangabad - Barwa Adda in Bihar and Jharkhand",null,null,"Jaipur - Kishangarh",{"$f":"INDEX(A$1:A$500,MAX(IFERROR(MATCH(\"*\"&LEFT(MID(TRIM(D9),2,10),{1,2,3,4,5,6,7,8,9,10})&\"*\",SUBSTITUTE(A$1:A$500,\" \",\"\"),0),\"\")))","v":"Kishangarh - Udaipur - Ahmedabad"}]
["Aurangabad - Barwa Adda in Bihar and Jharkhand",null,null,"Kishangarh Bypass",{"$f":"INDEX(A$1:A$500,MAX(IFERROR(MATCH(\"*\"&LEFT(MID(TRIM(D10),2,10),{1,2,3,4,5,6,7,8,9,10})&\"*\",SUBSTITUTE(A$1:A$500,\" \",\"\"),0),\"\")))","v":"Kishangarh - Udaipur - Ahmedabad"}]
["Aurangabad - Barwa Adda in Bihar and Jharkhand",null,null,"Kishangarh - Udaipur - Ahmedabad",{"$f":"INDEX(A$1:A$500,MAX(IFERROR(MATCH(\"*\"&LEFT(MID(TRIM(D11),2,10),{1,2,3,4,5,6,7,8,9,10})&\"*\",SUBSTITUTE(A$1:A$500,\" \",\"\"),0),\"\")))","v":"Kishangarh - Udaipur - Ahmedabad"}]
["Aurangabad - Barwa Adda in Bihar and Jharkhand",null,null,"Kishangarh - Udaipur - Ahmedabad",{"$f":"INDEX(A$1:A$500,MAX(IFERROR(MATCH(\"*\"&LEFT(MID(TRIM(D12),2,10),{1,2,3,4,5,6,7,8,9,10})&\"*\",SUBSTITUTE(A$1:A$500,\" \",\"\"),0),\"\")))","v":"Kishangarh - Udaipur - Ahmedabad"}]
["Kishangarh - Udaipur - Ahmedabad",null,null,"Kishangarh - Udaipur - Ahmedabad",{"$f":"INDEX(A$1:A$500,MAX(IFERROR(MATCH(\"*\"&LEFT(MID(TRIM(D13),2,10),{1,2,3,4,5,6,7,8,9,10})&\"*\",SUBSTITUTE(A$1:A$500,\" \",\"\"),0),\"\")))","v":"Kishangarh - Udaipur - Ahmedabad"}]
["Barwadda - Panagarh",null,null,"Kishangarh - Udaipur - Ahmedabad",{"$f":"INDEX(A$1:A$500,MAX(IFERROR(MATCH(\"*\"&LEFT(MID(TRIM(D14),2,10),{1,2,3,4,5,6,7,8,9,10})&\"*\",SUBSTITUTE(A$1:A$500,\" \",\"\"),0),\"\")))","v":"Kishangarh - Udaipur - Ahmedabad"}]
["Indore - Dewas",null,null,"Kishangarh - Udaipur - Ahmedabad",{"$f":"INDEX(A$1:A$500,MAX(IFERROR(MATCH(\"*\"&LEFT(MID(TRIM(D15),2,10),{1,2,3,4,5,6,7,8,9,10})&\"*\",SUBSTITUTE(A$1:A$500,\" \",\"\"),0),\"\")))","v":"Kishangarh - Udaipur - Ahmedabad"}]
["Indore - Kalghat",null,null,"Kishangarh - Udaipur - Ahmedabad",{"$f":"INDEX(A$1:A$500,MAX(IFERROR(MATCH(\"*\"&LEFT(MID(TRIM(D16),2,10),{1,2,3,4,5,6,7,8,9,10})&\"*\",SUBSTITUTE(A$1:A$500,\" \",\"\"),0),\"\")))","v":"Kishangarh - Udaipur - Ahmedabad"}]
["Indore - Kalghat",null,null,"Kishangarh - Udaipur - Ahmedabad",{"$f":"INDEX(A$1:A$500,MAX(IFERROR(MATCH(\"*\"&LEFT(MID(TRIM(D17),2,10),{1,2,3,4,5,6,7,8,9,10})&\"*\",SUBSTITUTE(A$1:A$500,\" \",\"\"),0),\"\")))","v":"Kishangarh - Udaipur - Ahmedabad"}]
["Indore - Kalghat",null,null,"Ahmedabad Bypass",{"$f":"INDEX(A$1:A$500,MAX(IFERROR(MATCH(\"*\"&LEFT(MID(TRIM(D18),2,10),{1,2,3,4,5,6,7,8,9,10})&\"*\",SUBSTITUTE(A$1:A$500,\" \",\"\"),0),\"\")))","v":"Kishangarh - Udaipur - Ahmedabad"}]
["MH-MP Border - Dhule",null,null,"Ahmedabad Bypass",{"$f":"INDEX(A$1:A$500,MAX(IFERROR(MATCH(\"*\"&LEFT(MID(TRIM(D19),2,10),{1,2,3,4,5,6,7,8,9,10})&\"*\",SUBSTITUTE(A$1:A$500,\" \",\"\"),0),\"\")))","v":"Kishangarh - Udaipur - Ahmedabad"},null,"If possible, please do it by formula as well as macros please please"]
["MH-MP Border - Dhule",null,null,"Ahmedabad - Vadodara Expy",{"$f":"INDEX(A$1:A$500,MAX(IFERROR(MATCH(\"*\"&LEFT(MID(TRIM(D20),2,10),{1,2,3,4,5,6,7,8,9,10})&\"*\",SUBSTITUTE(A$1:A$500,\" \",\"\"),0),\"\")))","v":"Kishangarh - Udaipur - Ahmedabad"}]
["MH-MP Border - Dhule",null,null,"Ahmedabad - Vadodara Expy",{"$f":"INDEX(A$1:A$500,MAX(IFERROR(MATCH(\"*\"&LEFT(MID(TRIM(D21),2,10),{1,2,3,4,5,6,7,8,9,10})&\"*\",SUBSTITUTE(A$1:A$500,\" \",\"\"),0),\"\")))","v":"Kishangarh - Udaipur - Ahmedabad"}]
["Pimpalgaon - Nashik - Gonde",null,null,"Vadodara - Baruch",{"$f":"INDEX(A$1:A$500,MAX(IFERROR(MATCH(\"*\"&LEFT(MID(TRIM(D22),2,10),{1,2,3,4,5,6,7,8,9,10})&\"*\",SUBSTITUTE(A$1:A$500,\" \",\"\"),0),\"\")))","v":"Ahmedabad - Vadodara"}]
["Shivpuri - Dewas ",null,null,"Narmada Bridge",{"$f":"INDEX(A$1:A$500,MAX(IFERROR(MATCH(\"*\"&LEFT(MID(TRIM(D23),2,10),{1,2,3,4,5,6,7,8,9,10})&\"*\",SUBSTITUTE(A$1:A$500,\" \",\"\"),0),\"\")))","v":"RA-MSK-Narmada"}]
["Belgaum - Dharwad",null,null,"Surat - Baruch",{"$f":"INDEX(A$1:A$500,MAX(IFERROR(MATCH(\"*\"&LEFT(MID(TRIM(D24),2,10),{1,2,3,4,5,6,7,8,9,10})&\"*\",SUBSTITUTE(A$1:A$500,\" \",\"\"),0),\"\")))","v":"Surat - Hazira "}]
["Pune - Satara",null,null,"Surat - Atul",{"$f":"INDEX(A$1:A$500,MAX(IFERROR(MATCH(\"*\"&LEFT(MID(TRIM(D25),2,10),{1,2,3,4,5,6,7,8,9,10})&\"*\",SUBSTITUTE(A$1:A$500,\" \",\"\"),0),\"\")))","v":"Surat - Hazira "}]
["Pune - Satara",null,null,"Atul - Kajali",{"$f":"INDEX(A$1:A$500,MAX(IFERROR(MATCH(\"*\"&LEFT(MID(TRIM(D26),2,10),{1,2,3,4,5,6,7,8,9,10})&\"*\",SUBSTITUTE(A$1:A$500,\" \",\"\"),0),\"\")))","v":"Obedullaganj - Betul"}]
["Pune - Satara",null,null,"Kajali - Manor",{"$f":"INDEX(A$1:A$500,MAX(IFERROR(MATCH(\"*\"&LEFT(MID(TRIM(D27),2,10),{1,2,3,4,5,6,7,8,9,10})&\"*\",SUBSTITUTE(A$1:A$500,\" \",\"\"),0),\"\")))","v":"Walajapet - Poonamalle"}]
["Tumkur - Chitradurga",null,null,"Manor - Vasai",{"$f":"INDEX(A$1:A$500,MAX(IFERROR(MATCH(\"*\"&LEFT(MID(TRIM(D28),2,10),{1,2,3,4,5,6,7,8,9,10})&\"*\",SUBSTITUTE(A$1:A$500,\" \",\"\"),0),\"\")))","v":"Panipat - Jalandhar"}]
["Tumkur - Chitradurga",null,null,"Dahisar - Mumbai",{"$f":"INDEX(A$1:A$500,MAX(IFERROR(MATCH(\"*\"&LEFT(MID(TRIM(D29),2,10),{1,2,3,4,5,6,7,8,9,10})&\"*\",SUBSTITUTE(A$1:A$500,\" \",\"\"),0),\"\")))","v":"Allahabad Bypass – Varanasi"}]
["Tumkur - Chitradurga",null,null,"Mumbra",{"$f":"INDEX(A$1:A$500,MAX(IFERROR(MATCH(\"*\"&LEFT(MID(TRIM(D30),2,10),{1,2,3,4,5,6,7,8,9,10})&\"*\",SUBSTITUTE(A$1:A$500,\" \",\"\"),0),\"\")))","v":"Amra Marg-Navi Mumbai Airport-JNPT"}]
["Tumkur - Chitradurga",null,null,"Mumbra - Kalamboli ",{"$f":"INDEX(A$1:A$500,MAX(IFERROR(MATCH(\"*\"&LEFT(MID(TRIM(D31),2,10),{1,2,3,4,5,6,7,8,9,10})&\"*\",SUBSTITUTE(A$1:A$500,\" \",\"\"),0),\"\")))","v":"Amra Marg-Navi Mumbai Airport-JNPT"}]
["Tumkur - Chitradurga",null,null,"Mumbai - Pune Expy",{"$f":"INDEX(A$1:A$500,MAX(IFERROR(MATCH(\"*\"&LEFT(MID(TRIM(D32),2,10),{1,2,3,4,5,6,7,8,9,10})&\"*\",SUBSTITUTE(A$1:A$500,\" \",\"\"),0),\"\")))","v":"Amra Marg-Navi Mumbai Airport-JNPT"}]
["Walajapet - Poonamalle",null,null,"Mumbai - Pune Expy",{"$f":"INDEX(A$1:A$500,MAX(IFERROR(MATCH(\"*\"&LEFT(MID(TRIM(D33),2,10),{1,2,3,4,5,6,7,8,9,10})&\"*\",SUBSTITUTE(A$1:A$500,\" \",\"\"),0),\"\")))","v":"Amra Marg-Navi Mumbai Airport-JNPT"}]
["Walajapet - Poonamalle",null,null,"Katraj - Sarola",{"$f":"INDEX(A$1:A$500,MAX(IFERROR(MATCH(\"*\"&LEFT(MID(TRIM(D34),2,10),{1,2,3,4,5,6,7,8,9,10})&\"*\",SUBSTITUTE(A$1:A$500,\" \",\"\"),0),\"\")))","v":"Panipat - Jalandhar"}]
["Walajapet - Poonamalle",null,null,"Khambatki Ghat",{"$f":"INDEX(A$1:A$500,MAX(IFERROR(MATCH(\"*\"&LEFT(MID(TRIM(D35),2,10),{1,2,3,4,5,6,7,8,9,10})&\"*\",SUBSTITUTE(A$1:A$500,\" \",\"\"),0),\"\")))","v":"Halol-Godhra-Shamlaji"}]
["Chennai - Tada",null,null,"Wathar - Satara",{"$f":"INDEX(A$1:A$500,MAX(IFERROR(MATCH(\"*\"&LEFT(MID(TRIM(D36),2,10),{1,2,3,4,5,6,7,8,9,10})&\"*\",SUBSTITUTE(A$1:A$500,\" \",\"\"),0),\"\")))","v":"Karaikudi - Ramanathapuram"}]
["Chilkalauripet - Vijayawada",null,null,"Satara - Kagal",{"$f":"INDEX(A$1:A$500,MAX(IFERROR(MATCH(\"*\"&LEFT(MID(TRIM(D37),2,10),{1,2,3,4,5,6,7,8,9,10})&\"*\",SUBSTITUTE(A$1:A$500,\" \",\"\"),0),\"\")))","v":"Pune - Satara"}]
["Chilkalauripet - Vijayawada",null,null,"Satara - Kagal",{"$f":"INDEX(A$1:A$500,MAX(IFERROR(MATCH(\"*\"&LEFT(MID(TRIM(D38),2,10),{1,2,3,4,5,6,7,8,9,10})&\"*\",SUBSTITUTE(A$1:A$500,\" \",\"\"),0),\"\")))","v":"Pune - Satara"}]
["Ennore - Thatchur",null,null,"Maharashtra Border - Belgaum",{"$f":"INDEX(A$1:A$500,MAX(IFERROR(MATCH(\"*\"&LEFT(MID(TRIM(D39),2,10),{1,2,3,4,5,6,7,8,9,10})&\"*\",SUBSTITUTE(A$1:A$500,\" \",\"\"),0),\"\")))","v":"MP/Maharashtra-Dhule"}]
["Icchapuram - Srikakulam",null,null,"Maharashtra Border - Belgaum",{"$f":"INDEX(A$1:A$500,MAX(IFERROR(MATCH(\"*\"&LEFT(MID(TRIM(D40),2,10),{1,2,3,4,5,6,7,8,9,10})&\"*\",SUBSTITUTE(A$1:A$500,\" \",\"\"),0),\"\")))","v":"MP/Maharashtra-Dhule"}]
["Jharpokharia - Baleshwar",null,null,"Belgaum - Dharwad",{"$f":"INDEX(A$1:A$500,MAX(IFERROR(MATCH(\"*\"&LEFT(MID(TRIM(D41),2,10),{1,2,3,4,5,6,7,8,9,10})&\"*\",SUBSTITUTE(A$1:A$500,\" \",\"\"),0),\"\")))","v":"Belgaum - Dharwad"}]
["Amravati-MH - Gujarat Border",null,null,"Hubli - Dharwad",{"$f":"INDEX(A$1:A$500,MAX(IFERROR(MATCH(\"*\"&LEFT(MID(TRIM(D42),2,10),{1,2,3,4,5,6,7,8,9,10})&\"*\",SUBSTITUTE(A$1:A$500,\" \",\"\"),0),\"\")))","v":"Hubli-Hospet"}]
["Surat - Hazira ",null,null,"Hubli - Dharwad",{"$f":"INDEX(A$1:A$500,MAX(IFERROR(MATCH(\"*\"&LEFT(MID(TRIM(D43),2,10),{1,2,3,4,5,6,7,8,9,10})&\"*\",SUBSTITUTE(A$1:A$500,\" \",\"\"),0),\"\")))","v":"Hubli-Hospet"}]
["Surat - Hazira ",null,null,"Hubli - Haveri",{"$f":"INDEX(A$1:A$500,MAX(IFERROR(MATCH(\"*\"&LEFT(MID(TRIM(D44),2,10),{1,2,3,4,5,6,7,8,9,10})&\"*\",SUBSTITUTE(A$1:A$500,\" \",\"\"),0),\"\")))","v":"Hubli-Hospet"}]
["Surat - Hazira ",null,null,"Harihar - Chitradurga",{"$f":"INDEX(A$1:A$500,MAX(IFERROR(MATCH(\"*\"&LEFT(MID(TRIM(D45),2,10),{1,2,3,4,5,6,7,8,9,10})&\"*\",SUBSTITUTE(A$1:A$500,\" \",\"\"),0),\"\")))","v":"Chitradurga-Harihar-Haveri"}]
["Surat - Hazira ",null,null,"Tumkur - Neemanagala",{"$f":"INDEX(A$1:A$500,MAX(IFERROR(MATCH(\"*\"&LEFT(MID(TRIM(D46),2,10),{1,2,3,4,5,6,7,8,9,10})&\"*\",SUBSTITUTE(A$1:A$500,\" \",\"\"),0),\"\")))","v":"Tumkur - Chitradurga"}]
["Surat - Hazira ",null,null,"Tumkur - Neemanagala",{"$f":"INDEX(A$1:A$500,MAX(IFERROR(MATCH(\"*\"&LEFT(MID(TRIM(D47),2,10),{1,2,3,4,5,6,7,8,9,10})&\"*\",SUBSTITUTE(A$1:A$500,\" \",\"\"),0),\"\")))","v":"Tumkur - Chitradurga"}]
["Hosur-Krishnagiri",null,null,"Bangalore - Neelamangala Expy",{"$f":"INDEX(A$1:A$500,MAX(IFERROR(MATCH(\"*\"&LEFT(MID(TRIM(D48),2,10),{1,2,3,4,5,6,7,8,9,10})&\"*\",SUBSTITUTE(A$1:A$500,\" \",\"\"),0),\"\")))","v":"Aurangabad - Barwa Adda in Bihar and Jharkhand"}]
["Hosur-Krishnagiri",null,null,"KA - TN Border",{"$f":"INDEX(A$1:A$500,MAX(IFERROR(MATCH(\"*\"&LEFT(MID(TRIM(D49),2,10),{1,2,3,4,5,6,7,8,9,10})&\"*\",SUBSTITUTE(A$1:A$500,\" \",\"\"),0),\"\")))","v":"Name1"}]
["Jabalpur - Lakhnadon",null,null,"Hosur - Krishnagiri",{"$f":"INDEX(A$1:A$500,MAX(IFERROR(MATCH(\"*\"&LEFT(MID(TRIM(D50),2,10),{1,2,3,4,5,6,7,8,9,10})&\"*\",SUBSTITUTE(A$1:A$500,\" \",\"\"),0),\"\")))","v":"Hosur-Krishnagiri"}]
["Jadcherla - Kottakota",null,null,"Krishnagiri - Wallajahpet",{"$f":"INDEX(A$1:A$500,MAX(IFERROR(MATCH(\"*\"&LEFT(MID(TRIM(D51),2,10),{1,2,3,4,5,6,7,8,9,10})&\"*\",SUBSTITUTE(A$1:A$500,\" \",\"\"),0),\"\")))","v":"Hosur-Krishnagiri"}]
["Krishnagiri-Thopurghat",null,null,"Krishnagiri - Wallajahpet",{"$f":"INDEX(A$1:A$500,MAX(IFERROR(MATCH(\"*\"&LEFT(MID(TRIM(D52),2,10),{1,2,3,4,5,6,7,8,9,10})&\"*\",SUBSTITUTE(A$1:A$500,\" \",\"\"),0),\"\")))","v":"Hosur-Krishnagiri"}]
["Ahmedabad - Vadodara",null,null,"Pallikonda - Ranipet, wallajahpet bypass",{"$f":"INDEX(A$1:A$500,MAX(IFERROR(MATCH(\"*\"&LEFT(MID(TRIM(D53),2,10),{1,2,3,4,5,6,7,8,9,10})&\"*\",SUBSTITUTE(A$1:A$500,\" \",\"\"),0),\"\")))","v":"Devihalli - Hassan"}]
["Baroda - Bharuch",null,null,"Kanchipuram - Poonamalee",{"$f":"INDEX(A$1:A$500,MAX(IFERROR(MATCH(\"*\"&LEFT(MID(TRIM(D54),2,10),{1,2,3,4,5,6,7,8,9,10})&\"*\",SUBSTITUTE(A$1:A$500,\" \",\"\"),0),\"\")))","v":"Kanchipuram-Chennai    "}]
["Baroda - Bharuch"]
["Baroda - Bharuch"]
["Gurgaon-Kotputli-Jaipur"]
["Gurgaon-Kotputli-Jaipur"]
["Gurgaon-Kotputli-Jaipur"]
["Halol-Godhra-Shamlaji"]
["Hyderabad - Vijayawada"]
["Pune- Solapur"]
["Pune- Solapur"]
["Pune- Solapur"]
["Solapur - Sangareddy "]
["Solapur - Sangareddy "]
["Solapur - Sangareddy "]
["Solapur - Sangareddy "]
["Solapur - Sangareddy "]
["Solapur - Sangareddy "]
["Solapur - Sangareddy "]
["Jaipur - Reengus"]
["Bhopal-Bareli"]
["Bhopal-Bareli"]
["Bhopal-Bareli"]
["Bhopal-Bareli"]
["Bhopal-Bareli"]
["Bhopal-Bareli"]
["Bhopal-Bareli"]
["Deoli - Kota"]
["Jaipur - Deoli"]
["Bijapur-Hungund-Hospet"]
["Bijapur-Hungund-Hospet"]
["Bijapur-Hungund-Hospet"]
["Bijapur-Hungund-Hospet"]
["Bijapur-Hungund-Hospet"]
["Bijapur-Hungund-Hospet"]
["Hospet-Chitradurga"]
["Hospet-Chitradurga"]
["Hospet-Chitradurga"]
["Hospet-Chitradurga"]
["Beawar-Pali-Pindwara"]
["Beawar-Pali-Pindwara"]
["Beawar-Pali-Pindwara"]
["Beawar-Pali-Pindwara"]
["Beawar-Pali-Pindwara"]
["Beawar-Pali-Pindwara"]
["Beawar-Pali-Pindwara"]
["Palanpur - Udapiur"]
["Palanpur - Udapiur"]
["Palanpur - Udapiur"]
["Goa/Karnataka Border - Kundapur"]
["Goa/Karnataka Border - Kundapur"]
["Goa/Karnataka Border - Kundapur"]
["Goa/Karnataka Border - Kundapur"]
["Goa/Karnataka Border - Kundapur"]
["Kuttipuram-Edapally"]
["Kuttipuram-Edapally"]
["Kuttipuram-Edapally"]
["Kuttipuram-Edapally"]
["Rajauli-Bakhtiarpur"]
["Rajauli-Bakhtiarpur"]
["Rajauli-Bakhtiarpur"]
["Manguli Chawk - Sambalpur"]
["Devihalli - Hassan"]
["Madurai - Dhanushkodi "]
["Hubli-Hospet"]
["Hubli-Hospet"]
["Hubli-Hospet"]
["Hubli-Hospet"]
["Tindivanam - Krishnagiri"]
["Obedullaganj - Betul"]
["Obedullaganj - Betul"]
["Obedullaganj - Betul"]
["Obedullaganj - Betul"]
["Obedullaganj - Betul"]
["Obedullaganj - Betul"]
["Obedullaganj - Betul"]
["Palanpur - Udapiur"]
["Palanpur - Udapiur"]
["Palanpur - Udapiur"]
["Palanpur - Udapiur"]
["Palanpur - Udapiur"]
["Gwalior - Shivpuri"]
["Jhansi-Kajuraho"]
["Kishangarh - Udaipur"]
["Kishangarh - Udaipur"]
["Mokama - Munger"]
["Mokama - Munger"]
["Mokama - Munger"]
["Rampur - Kathgodam"]
["Karaikudi - Ramanathapuram"]
["Karaikudi - Ramanathapuram"]
["Karaikudi - Ramanathapuram"]
["Trichy - Karaikudi"]
["Aurangabad - Dhule"]
["Meerut - Bulanshahar"]
["Meerut - Bulanshahar"]
["Dindigul - Theni"]
["Dindigul - Theni"]
["Dindigul - Theni"]
["Dindigul - Theni"]
["Dindigul - Theni"]
["Vikravandi - Thanjavur"]
["Vikravandi - Thanjavur"]
["Vikravandi - Thanjavur"]
["Vikravandi - Thanjavur"]
["Vikravandi - Thanjavur"]
["JNPT Project"]
["CHANDIKHOLE - PARADEEP"]
["Chandikhole - Paradip"]
["Coimbatore - Mettupalayam"]
["Rohtak - Bawal "]
["Kishangarh - Udaipur"]
["Bhuj - Bhachau"]
["Bhuj - Bhachau"]
["Bhuj - Bhachau"]
["Bhuj - Bhachau"]
["Ahmedabad - Vadodara"]
["Ahmedabad - Vadodara"]
["Halol-Netrang"]
["Halol-Netrang"]
["Netrang - Halol"]
["Netrang - Halol"]
["Netrang - Halol"]
["Vapi - Netrang"]
["Vapi - Netrang"]
["Vapi - Netrang"]
["Vapi - Netrang"]
["Vapi - Netrang"]
["Ahmedabad - Viramgam-Maliya "]
["Ahmedabad - Viramgam-Maliya "]
["Ahmedabad - Viramgam-Maliya "]
["Bagodara - Vasad"]
["Bagodara - Vasad"]
["Bagodara - Vasad"]
["Bagodara - Vasad"]
["Bagodara - Vasad"]
["Bagodara - Vasad"]
["Bagodara - Vasad"]
["Radahanpur - Patan "]
["Ahmedabad - Viramgam-Maliya "]
["Rajkot - Jamnagar - Vadinar "]
["Rajkot - Jamnagar - Vadinar "]
["Rajkot - Jamnagar - Vadinar "]
["Rajkot - Jamnagar - Vadinar "]
["Gandidham-Mundra"]
["Deshalpur - Jakau"]
["Deshalpur - Jakau"]
["JNPT Project"]
["Radahanpur - Patan "]
["Panipat Elevated Corridor "]
[" Barwa Adda-Panagarh"]
[" Barwa Adda-Panagarh"]
[" Barwa Adda-Panagarh"]
["Allahabad – Varanasi "]
["Allahabad – Varanasi "]
["Allahabad – Varanasi "]
["Allahabad – Varanasi "]
["Allahabad – Varanasi "]
["Aurangabad-Barwadda"]
["Barwa Adda-Panagarh"]
["Handia-Varanasi"]
["MP/Maharashtra-Dhule"]
["MP/Maharashtra-Dhule"]
["MP/Maharastra-Dhule"]
["MP/Maharastra-Dhule"]
["MP/Maharastra-Dhule"]
["Pimpalgaon - Nashik- Gonde "]
["Pimpalgaon - Nashik- Gonde "]
["Pimpalgaon - Nashik- Gonde "]
["Amra Marg-Navi Mumbai Airport-JNPT"]
["Amra Marg-Navi Mumbai Airport-JNPT"]
["Chitradurga-Harihar-Haveri"]
["Dharwad - Belgaum"]
["PTAS Walajahpet - Poonamallee "]
["PTAS Walajahpet - Poonamallee "]
["Chennai-Tada"]
["Chennai-Tada"]
["Chennai-Tada"]
["Ennore Thalchur "]
["Icchapuram – Anandapuram "]
["Icchapuram – Anandapuram "]
["Icchapuram – Anandapuram "]
["Icchapuram – Anandapuram "]
["Jarpokaria- Baleswar"]
["Jarpokaria- Baleswar"]
["Vijayawada-Gundugolanu"]
["Vijayawada-Gundugolanu"]
["Vijayawada-Gundugolanu"]
["Amravati-Maharashtra/Gujurat-Border"]
["Amravati-Maharashtra/Gujurat-Border"]
["Amravati-Maharashtra/Gujurat-Border"]
["Amravati-Maharashtra/Gujurat-Border"]
["Amravati-Maharashtra/Gujurat-Border"]
["Amravati-Maharashtra/Gujurat-Border"]
["Amravati-Maharashtra/Gujurat-Border"]
["Baharagora-Kharagpur"]
["Bahargora to Sambalpur-Jabalpur"]
["Bahargora to Sambalpur-Jabalpur"]
["Bahargora to Sambalpur-Jabalpur"]
["Bahargora to Sambalpur-Jabalpur"]
["Bahargora to Sambalpur-Jabalpur"]
["Dhankuni-Kharagpur"]
["Jadcharla to Kottakota"]
["Jadcharla to Kottakota"]
["Jadcharla to Kottakota"]
["JADCHERLA-KOTHAKOTA"]
["KRISHNAGIRI-THOPPUR"]
["Lakhnadon – Jabalpur – Rewa – Hanumana"]
["Lakhnadon – Jabalpur – Rewa – Hanumana"]
["Lakhnadon – Jabalpur – Rewa – Hanumana"]
["Lakhnadon – Jabalpur – Rewa – Hanumana"]
["Lakhnadon – Jabalpur – Rewa – Hanumana"]
["Lakhnadon – Jabalpur – Rewa – Hanumana"]
["Lakhnadon – Jabalpur – Rewa – Hanumana"]
["Lakhnadon – Jabalpur – Rewa – Hanumana"]
["Kishangarh-Udaipur-Ahmedabad"]
["Kishangarh-Udaipur-Ahmedabad"]
["Kishangarh-Udaipur-Ahmedabad"]
["Kishangarh-Udaipur-Ahmedabad"]
["Kishangarh-Udaipur-Ahmedabad"]
["Kishangarh-Udaipur-Ahmedabad"]
["RA-MSK-Narmada"]
["vododara - baruch"]
["vododara - baruch"]
["Solapur–Sangareddy"]
["Solapur–Sangareddy"]
["Solapur–Sangareddy"]
["Solapur–Sangareddy"]
["Vijayawada-Gundugolanu"]
["Bhopal - Obaidullaganj – Jabalpur"]
["Bhopal - Obaidullaganj – Jabalpur"]
["Bhopal - Obaidullaganj – Jabalpur"]
["Bhopal - Obaidullaganj – Jabalpur"]
["Bhopal - Obaidullaganj – Jabalpur"]
["Bhopal - Obaidullaganj – Jabalpur"]
["Kota-Dhara-Jhalwar"]
["Solapur-Bijapur"]
["Solapur-Bijapur"]
["Beawar-Pali-Pindwara"]
["Beawar-Pali-Pindwara"]
["Beawar-Pali-Pindwara"]
["Beawar-Pali-Pindwara"]
["Beawar-Pali-Pindwara"]
["Goa/Karnataka Border – Kundapur "]
["Birmitrapur-Barkote"]
["Birmitrapur-Barkote (125 km)"]
["Birmitrapur-Barkote (125 km)"]
["bakhtiarpur-khagari"]
["bakhtiarpur-khagari"]
["Rajauli-Bhaktiyarpur"]
["Mahulia-Baharagora"]
["Birmitrapur-Barkote (125 km)"]
["Birmitrapur-Barkote (125 km)"]
["Birmitrapur-Barkote (125 km)"]
["Birmitrapur-Barkote (125 km)"]
["Birmitrapur-Barkote (125 km)"]
["Birmitrapur-Barkote (125 km)"]
["Cuttack to Sambalpur"]
["Cuttack-Angul"]
["Cuttack-Angul"]
["Cuttack-Angul"]
["Cuttack-Angul"]
["Vikravandi to Thanjavur"]
["Krishnagiri Walajahpet"]
["Krishnagiri Walajahpet"]
["Krishnagiri-Walajahpet"]
["Krishnagiri–Walajahpet"]
["Devihalli-Hassan"]
["Devihalli-Hassan"]
["TAS Madurai – Ramanathapuram "]
["Varanasi-Sultanpur"]
["Varanasi-Sultanpur"]
[" Muzaffarnagar-Haridwar"]
["Ahmedabad-Godra"]
["Ahmedabad-Godra"]
["Ahmedabad-Godra"]
["Ahmedabad-Godra"]
["Godra - Guj/MP Border"]
["Godra - Guj/MP Border"]
["Godra - Guj/MP Border"]
["Indore- Guj/MP Border"]
["Indore- Guj/MP Border"]
["Indore- Guj/MP Border"]
[" Ambala-Kaithal"]
["JODHPUR - PALI "]
["JODHPUR - PALI "]
["Coimbatore – Mettupalayam"]
["UP/Haryana_Border-Yamunanagar-Shaha_Barwala-Panchkula"]
["Panna – Satna "]
["Siddi - Singrouli "]
["Kishangarh-Udaipur-Ahmedabad"]
["Kishangarh-Udaipur-Ahmedabad"]
["Rampur - Kathgodam "]
["Raipur – Bilaspur"]
["Raipur – Bilaspur"]
["Raipur – Bilaspur"]
["Aurangabad-Dhule"]
["Aurangabad-Dhule"]
["Aurangabad-Dhule"]
["Solapur – Yedishi "]
["Solapur – Yedishi "]
["Yedshi-Aurangabad"]
["Yedshi-Aurangabad"]
["Yedshi-Aurangabad"]
["Yedshi-Aurangabad"]
["Panikoili-Rimuli"]
["Panikoili-Rimuli"]
["Panikoili-Rimuli"]
["Panikoili-Rimuli"]
["Panikoili-Rimuli"]
["Panikoili-Rimuli"]
["Panikoili-Rimuli"]
["Panikoili-Rimuli"]
["Thanjavur to Manamadurai"]
["Vikravandi to Thanjavur"]
["Vikravandi-Thanjavur"]
["Vikravandi-Thanjavur"]
["MJPRCL Roads"]
["MJPRCL Roads"]
["MJPRCL Roads"]
["MJPRCL Roads"]
["Chandhikhole-Paradeep"]
["Panipat – Rohtak "]
["Panipat – Rohtak "]
["Kishangarh-Udaipur-Ahmedabad"]
[" Samakhiali-Gandhidham"]
[" Samakhiali-Gandhidham"]
[" Samakhiali-Gandhidham"]
["Samakhiali-Gandhidham"]
["Samakhiali-Gandhidham"]
["Samakhiali-Gandhidham"]
["Jetput-Somnath"]
["Jetput-Somnath"]
["Jetput-Somnath"]
["Jetput-Somnath"]
["Belgaum-Dharwad"]
["Amra Marg-Navi Mumbai Airport-JNPT"]
["Amra Marg-Navi Mumbai Airport-JNPT"]
["Kishangarh-Udaipur-Ahmedabad"]
["Kishangarh-Udaipur-Ahmedabad"]
["Kishangarh-Udaipur-Ahmedabad"]
["Kishangarh-Udaipur-Ahmedabad"]
["Kishangarh-Udaipur-Ahmedabad"]
["Kishangarh-Udaipur-Ahmedabad"]
["Kishangarh-Udaipur-Ahmedabad"]
["Kishangarh-Udaipur-Ahmedabad"]
["Kishangarh-Udaipur-Ahmedabad"]
["Kishangarh-Udaipur-Ahmedabad"]
["Kishangarh-Udaipur-Ahmedabad"]
["Kishangarh-Udaipur-Ahmedabad"]
["Kishangarh-Udaipur-Ahmedabad"]
["Kishangarh-Udaipur-Ahmedabad"]
["Kishangarh-Udaipur-Ahmedabad"]
["Kishangarh-Udaipur-Ahmedabad"]
["Kishangarh-Udaipur-Ahmedabad"]
["Kishangarh-Udaipur-Ahmedabad"]
["Kishangarh-Udaipur-Ahmedabad"]
["Kishangarh-Udaipur-Ahmedabad"]
["Kishangarh-Udaipur-Ahmedabad"]
["Kishangarh-Udaipur-Ahmedabad"]
["Kishangarh-Udaipur-Ahmedabad"]
["Bagodara-Dhandhuka-Bhavnagar"]
["Kota-Dhara-Jhalwar"]
["UP/Haryana_Border-Yamunanagar-Shaha_Barwala-Panchkula"]
["Halol-Godhra-Shamlaji"]
["Halol-Godhra-Shamlaji"]
["Halol-Godhra-Shamlaji"]
["Halol-Godhra-Shamlaji"]
["Halol-Godhra-Shamlaji"]
["Bagodhara-Bhavnagar"]
["Ahmedabad - Viramgam-Maliya "]
["Ahmedabad - Viramgam-Maliya "]
["Ahmedabad - Viramgam-Maliya "]
["Kishangarh-Udaipur-Ahmedabad"]
["Chandhikhole-Paradeep"]
["Kishangarh-Udaipur-Ahmedabad"]
["Ahmedabad - Viramgam-Maliya "]
["Bagodhara-Bhavnagar"]
["Bagodhara-Bhavnagar"]
["Bagodhara-Bhavnagar"]
["Bagodhara-Bhavnagar"]
["Bagodhara-Bhavnagar"]
["Rajkot -Jamnagar - Vadinar"]
["Rajkot -Jamnagar - Vadinar"]
["Rajkot -Jamnagar - Vadinar"]
["Rajkot -Jamnagar - Vadinar"]
["Rajkot -Jamnagar - Vadinar"]
["Bagodara-Dhandhuka-Bhavnagar"]
["Bagodara-Dhandhuka-Bhavnagar"]
["Bagodara-Dhandhuka-Bhavnagar"]
["Bhuj-Bhachau"]
["Bhuj-Bhachau"]
["Amra Marg-Navi Mumbai Airport-JNPT"]
["MJPRCL Roads"]
["RA-MSK-Narmada"]
["Kishangarh-Udaipur-Ahmedabad"]
["Agra-Bharatpur"]
["Ambala-Khanna"]
["Ambala-Zirakpur"]
["Amritsar-Wagah"]
["Khanna-Jallandhar"]
["Khanna-Jallandhar"]
["Khanna-Jallandhar"]
["New Two Lane Road Guna Bypass"]
["Panipat Elevated "]
["Panipat-Ambala"]
["Tinidvanam-Ulundurpet"]
["Badarpur-Kosi     "]
["Barachatti - Gorahar"]
["Barun - Barachatti"]
["Barwa- Adda-Panagarh   "]
["Barwa- Adda-Panagarh   "]
["Bhaunti-Fatehpur"]
["Budbud-Pulsit"]
["Etawah-Sikandera"]
["Ganga Bridge (Varanasi) (GQ)"]
["Gorhar to Barwadda  (Km. 320.000 to Km. 398.750) "]
["Handia-Rajatalab"]
["Kosi-Agra   "]
["Mohania-Barun"]
["Palsit-Dankuni"]
["Rampur Thariwan- Kokhraj "]
["Shastri Bridge (Allahabad) (GQ)"]
["Shikohabad - Etawah & Etawah Bypass"]
["Sikandera- Bhaunti"]
["Tada - Nellore "]
["Tada - Nellore "]
["Tada - Nellore "]
["Tundla-Makhanpur"]
["Varanasi-Monia"]
["Vivekananad Bridge"]
["Agra Gwalior"]
["Agra Gwalior"]
["Agra Gwalior"]
["Agra-Dholpur"]
["Indore-Khalghat "]
["Pimpalgoan - Dhule"]
["Anthrasanahally - Tavarakere"]
["Belgam-Maharastra Border "]
["Gabbur - Devegiri"]
["Hirebagewadi-Dharwad"]
["Kanchipuram-Chennai    "]
["Kanchipuram-Walajapet"]
["Satara-Kagal * (GQ)"]
["Satara-Khandala "]
["Tavarekare - Daddasidanahally"]
["Tumkar-Neelmangla  "]
["Tumkar-Neelmangla  (GQ) "]
["Westerly Byepass"]
["Ankapalli -Vishakhapatnam"]
["Ankapalli -Vishakhapatnam"]
["Ankapalli -Vishakhapatnam *      "]
["Bhubaneswar-Cuttack-Jagatpur"]
["Bhubaneswar-Cuttack-Jagatpur"]
["Bhubaneswar-Cuttack-Jagatpur"]
["Bhubaneswar-Cuttack-Jagatpur     "]
["Bommuru- Gondugolanu"]
["Chetia-Bhadrak"]
["Chetia-Bhadrak (Bhuwneshwar)"]
["Chilkaluripet-Vijayawada    "]
["Kavali-Nellore"]
["Kavalli-Ongole   "]
["Kolaghat - Kharagpur"]
["Nadigama- Icchapuram       "]
["Ongole-Chilkaluripet    "]
["Rajamundry-Tuni "]
["ROB Kishangarh"]
["ROB Kishangarh(Kishangarh) (OTHERS)  "]
["Srikakulam"]
["Srikakulam - Chilakpalem"]
["Srikakulam-Icchapuram"]
["Sunakhala-Bhubaneswar"]
["Tada-Nellore (GQ)"]
["Tuni-Ankapalli"]
["Vijayawada-Gundugolanu(31/8Km)    "]
["Vijayawada-Gundugolanu(53/3Km)    "]
["Visakhapatnam Port Connectivity"]
["Visakhapatnam Port Connectivity"]
["Visakhapatnam-Champawati"]
["Amravati Bypass"]
["Durg Bypass"]
["Durg Bypass  (OTHERS)"]
["Jaipur-Mahuva"]
["Jaipur-Mahuva"]
["Kolaghat - Kharagpur"]
["Kondhali-Talegaon"]
["Tada-Chennai"]
["Adloor Yellareddy-Gundla Pochampally"]
["AP/ Karnataka Border - Devanhalli"]
["Dindigul Bypass-Samyanallore (TN-05)"]
["Hosour-Krishnagiri"]
["Hyderabad-Bangalore section"]
["Hyderabad-Bangalore section"]
["IslamNagar-Kadtal"]
["Jatcherla - Kotakatta (Western Andhra)"]
["Kadtal-Armur"]
["Karur Bypass - Dindigul Bypass"]
["Khooni Bridge "]
["Khooni Bridge (5.2.08)"]
["Kooni River\nNagpu-Hyderabad Section"]
["Kothakota bypass–Kurnool"]
["Kothakota bypass–Kurnool"]
["Krishnagiri-Thopurghat "]
["Marur-AP/Karnataka \nBorder"]
["Namakkal – Karur"]
["Omallur-Namakkal "]
["Thondapali-Jedcherla"]
["Waghadhi Nallah "]
["Waghdi Nallah Bridge (23.3.08)"]
["Ahemdabad Vadodara "]
["Bharuch-Surat"]
["Bharuch-Surat"]
["Bharuch-Surat    "]
["Chalthan-Wagaldhara"]
["Gurgaon-Kotputli     "]
["Gurgaon-Kotputli     "]
["Gurgaon-Kotputli     "]
["Himmatnagar-Chiloda"]
["Jaipur Bypass"]
["Jaipur Bypass"]
["Jaipur-Kishangarh (GQ)"]
["Jaipur-Mahuva"]
["Jetpur-Gondal-Rajkot"]
["Jetpur-Gondal-Rajkot"]
["Jetpur-Gondal-Rajkot"]
["Kajali-Manor   "]
["Kajali-Manor   "]
["Kherwara-Ratanpur"]
["Kherwara-Ratanpur"]
["Kotputli-Chandwazi   "]
["Kotputli-Jaipur Bypass   "]
["Manor- Dahisar"]
["Manor- Dahisar  "]
["Ratanpur-Himatnagar "]
["Udaipur-Kherwara"]
["Vadodara-Bharuch     "]
["Wagaldhara-Kajali"]
["Wagaldhara-Kajali"]
["Watrak Bridge"]
["Nadigama-Vijaywada"]
["Nadigama-Vijaywada  (OTHERS)"]
["Bharatpur-Mahua "]
["Bharatpur-Mahua "]
["Abu road - Pindwara"]
["Palanpur/ Khemana -  Aburoad "]
["Radhanpur-Palanpur"]
["Adesar-Samakhayali"]
["Radhanpur-Adesar"]
["Radhanpur-Adesar (Palanpur)"]
["Radhanpur-Palanpur"]
["Garhmukteshwar-Moradabad"]
["Ghaziabad-Hapur  & Hapur Bypass      "]
["Ghaziabad-Hapur & Hapur Bypass      "]
["Kali Nadi Bridge  "]
["Kali Nadi Bridge  (OTHERS)"]
["Moradabad Bypass"]
["Amola - Jhansi Bypass"]
["Amola - Jhansi Bypass"]
["Lucknow-Kanpur"]
["Cable stay Bridge at Naini  "]
["Cable stay Bridge at Naini  (OTHERS)"]
["Cable Stayed Bridge across River Yamuna at Allahabad"]
["Chennai Bypass"]
["Tambaram- Tindivaram"]
["Tambaram- Tindivaram"]
["Ulundrupet-Padalur"]
["Ambur-Walajahpet"]
["Krishnagiri-Ambur"]
["Krishnagiri-Ambur"]
["Kumarapalayam Bypass-Chengapalli"]
["Darbhanga-Sakari section"]
["Gosaghat Bridge "]
["Gosaghat Bridge (7.2.08)"]
["Dankuni-Kolaghat"]
["Dantan - Balasore"]
["Dantan - Balasore"]
["Dantun-Kharagpur"]
["Bichoor-Bijoliya"]
["Bijoliya-Kharipur"]
["Chittorgarh-Bichoor"]
["Derumata Temple - Gadawali River"]
["Derumata Temple - Gadawali River"]
["Gadawali River-Raj/MP Boarder"]
["Gadawali River-Raj/MP Boarder"]
["Jaswantgarh-Debari"]
["Kota Bypass-Derumata Temple"]
["Kota Bypass-Derumata Temple"]
["Pindwara-Jaswantgarh"]
["Rithola-Udaipur"]
["Bhilwara-Chittorgarh"]
["Bhilwara-Chittorgarh                           "]
["Hirebagewadi-Hattargi"]
["Hirebagewadi-Hattargi"]
["Ghagraghat Bridge  "]
["Ghagraghat Bridge  (EW) "]
["Jawahar Lal Nehru Port Trust"]
["Jawahar Lal Nehru Port Trust-II"]
["Tovarankurichi bypass end to Madurai"]
["Trichi - Tovarankurichi "]
["Chandikhol-Paradip"]
["Raj/MP Boarder-Amola Vill "]
["Raj/MP Boarder-Amola Vill "]
["Chittorgarh Bypass"]
["Chittorgarh Bypass"]
["Kishangarh-Bhilwara"]
["Kishangarh-Bhilwara                         "]
["Kishangarh-Bhilwara"]
["Kishangarh-Bhilwara"]
["Bamanbore – Garamore "]
["Samakhayali- Gandhidham    "]
["Bhiladi-Jetpur"]
["Porbandar - Bhiladi"]
["Supedi Bridge (3.2.08)"]
["AV Expressway Phase I    "]
["AV Expressway Phase I    "]
["AV Expressway Phase II"]
["AV Expressway Phase II"]

{"sheet":"Condition 2","index":1,"n_rows":669,"n_cols":65,"rows_kept":669,"cut":false,"hidden":false,"merged":[]}
["Name1",null,null,"Name2",null,null,null,null,null,null,null,null,null,null,null,null,null,null,null,null,null,null,null,null,null,null,null,null,null,null,null,null,null,null,null,null,null,null,null,null,null,null,null,null,null,null,null,null,null,null,null,null,null,null,null,null,null,null,null,null,null,null,null,null,{"$f":"AND($D$2:$D$60<>\"\",ISERROR(FIND(LOWER($D$2:$D$60),LOWER(A1)))=FALSE)","v":false}]
["Panipat - Jalandhar",null,null,"Delhi - Gurgaon EXPY"]
["Allahabad Bypass – Varanasi",null,null,"Delhi - Gurgaon EXPY"]
["Allahabad Bypass – Varanasi",null,null,"Gurgaon - Kotputli"]
["Allahabad Bypass – Varanasi",null,null,"Gurgaon - Kotputli"]
["Allahabad Bypass – Varanasi",null,null,"Kotputli - Amer"]
["Allahabad Bypass – Varanasi",null,null,"Amer - Jaipur"]
["Aurangabad - Barwa Adda in Bihar and Jharkhand",null,null,"Jaipur - Kishangarh"]
["Aurangabad - Barwa Adda in Bihar and Jharkhand",null,null,"Jaipur - Kishangarh"]
["Aurangabad - Barwa Adda in Bihar and Jharkhand",null,null,"Kishangarh Bypass"]
["Aurangabad - Barwa Adda in Bihar and Jharkhand",null,null,"Kishangarh - Udaipur - Ahmedabad"]
["Aurangabad - Barwa Adda in Bihar and Jharkhand",null,null,"Kishangarh - Udaipur - Ahmedabad"]
["Kishangarh - Udaipur - Ahmedabad",null,null,"Kishangarh - Udaipur - Ahmedabad"]
["Barwadda - Panagarh",null,null,"Kishangarh - Udaipur - Ahmedabad"]
["Indore - Dewas",null,null,"Kishangarh - Udaipur - Ahmedabad"]
["Indore - Kalghat",null,null,"Kishangarh - Udaipur - Ahmedabad"]
["Indore - Kalghat",null,null,"Kishangarh - Udaipur - Ahmedabad"]
["Indore - Kalghat",null,null,"Ahmedabad Bypass"]
["MH-MP Border - Dhule",null,null,"Ahmedabad Bypass"]
["MH-MP Border - Dhule",null,null,"Ahmedabad - Vadodara Expy"]
["MH-MP Border - Dhule",null,null,"Ahmedabad - Vadodara Expy"]
["Surat - Hazira ",null,null,"Vadodara - Baruch"]
["Surat - Hazira ",null,null,"Narmada Bridge"]
["Surat - Hazira ",null,null,"Surat - Baruch"]
["Surat - Hazira ",null,null,"Surat - Atul"]
["Pune - Satara",null,null,"Atul - Kajali"]
["Pune - Satara",null,null,"Kajali - Manor"]
["Tumkur - Chitradurga",null,null,"Manor - Vasai"]
["Tumkur - Chitradurga",null,null,"Dahisar - Mumbai"]
["Tumkur - Chitradurga",null,null,"Mumbra"]
["Tumkur - Chitradurga",null,null,"Mumbra - Kalamboli "]
["Tumkur - Chitradurga",null,null,"Mumbai - Pune Expy"]
["Walajapet - Poonamalle",null,null,"Mumbai - Pune Expy"]
["Walajapet - Poonamalle",null,null,"Katraj - Sarola"]
["Walajapet - Poonamalle",null,null,"Khambatki Ghat"]
["Chennai - Tada",null,null,"Wathar - Satara"]
["Chilkalauripet - Vijayawada",null,null,"Satara - Kagal"]
["Chilkalauripet - Vijayawada",null,null,"Satara - Kagal"]
["Ennore - Thatchur",null,null,"Maharashtra Border - Belgaum"]
["Icchapuram - Srikakulam",null,null,"Maharashtra Border - Belgaum"]
["Jharpokharia - Baleshwar",null,null,"Belgaum - Dharwad"]
["Amravati-MH - Gujarat Border",null,null,"Hubli - Dharwad"]
["Surat - Hazira ",null,null,"Hubli - Dharwad"]
["Surat - Hazira ",null,null,"Hubli - Haveri"]
["Surat - Hazira ",null,null,"Harihar - Chitradurga"]
["Surat - Hazira ",null,null,"Tumkur - Neemanagala"]
["Surat - Hazira ",null,null,"Tumkur - Neemanagala"]
["Hosur-Krishnagiri",null,null,"Bangalore - Neelamangala Expy"]
["Hosur-Krishnagiri",null,null,"KA - TN Border"]
["Jabalpur - Lakhnadon",null,null,"Hosur - Krishnagiri"]
["Jadcherla - Kottakota",null,null,"Krishnagiri - Wallajahpet"]
["Krishnagiri-Thopurghat",null,null,"Krishnagiri - Wallajahpet"]
["Ahmedabad - Vadodara",null,null,"Pallikonda - Ranipet, wallajahpet bypass"]
["Baroda - Bharuch",null,null,"Kanchipuram - Poonamalee"]
["Baroda - Bharuch"]
["Baroda - Bharuch"]
["Gurgaon-Kotputli-Jaipur"]
["Gurgaon-Kotputli-Jaipur"]
["Gurgaon-Kotputli-Jaipur"]
["Halol-Godhra-Shamlaji"]
["Hyderabad - Vijayawada"]
["Pune- Solapur"]
["Pune- Solapur"]
["Pune- Solapur"]
["Solapur - Sangareddy "]
["Solapur - Sangareddy "]
["Solapur - Sangareddy "]
["Solapur - Sangareddy "]
["Solapur - Sangareddy "]
["Solapur - Sangareddy "]
["Solapur - Sangareddy "]
["Jaipur - Reengus"]
["Bhopal-Bareli"]
["Bhopal-Bareli"]
["Bhopal-Bareli"]
["Bhopal-Bareli"]
["Bhopal-Bareli"]
["Bhopal-Bareli"]
["Bhopal-Bareli"]
["Deoli - Kota"]
["Jaipur - Deoli"]
["Bijapur-Hungund-Hospet"]
["Bijapur-Hungund-Hospet"]
["Bijapur-Hungund-Hospet"]
["Bijapur-Hungund-Hospet"]
["Bijapur-Hungund-Hospet"]
["Bijapur-Hungund-Hospet"]
["Hospet-Chitradurga"]
["Hospet-Chitradurga"]
["Hospet-Chitradurga"]
["Hospet-Chitradurga"]
["Beawar-Pali-Pindwara"]
["Beawar-Pali-Pindwara"]
["Beawar-Pali-Pindwara"]
["Beawar-Pali-Pindwara"]
["Beawar-Pali-Pindwara"]
["Beawar-Pali-Pindwara"]
["Beawar-Pali-Pindwara"]
["Palanpur - Udapiur"]
["Palanpur - Udapiur"]
["Palanpur - Udapiur"]
["Goa/Karnataka Border - Kundapur"]
["Goa/Karnataka Border - Kundapur"]
["Goa/Karnataka Border - Kundapur"]
["Goa/Karnataka Border - Kundapur"]
["Goa/Karnataka Border - Kundapur"]
["Kuttipuram-Edapally"]
["Kuttipuram-Edapally"]
["Kuttipuram-Edapally"]
["Kuttipuram-Edapally"]
["Rajauli-Bakhtiarpur"]
["Rajauli-Bakhtiarpur"]
["Rajauli-Bakhtiarpur"]
["Manguli Chawk - Sambalpur"]
["Devihalli - Hassan"]
["Madurai - Dhanushkodi "]
["Hubli-Hospet"]
["Hubli-Hospet"]
["Hubli-Hospet"]
["Hubli-Hospet"]
["Tindivanam - Krishnagiri"]
["Obedullaganj - Betul"]
["Obedullaganj - Betul"]
["Obedullaganj - Betul"]
["Obedullaganj - Betul"]
["Obedullaganj - Betul"]
["Obedullaganj - Betul"]
["Obedullaganj - Betul"]
["Palanpur - Udapiur"]
["Palanpur - Udapiur"]
["Palanpur - Udapiur"]
["Palanpur - Udapiur"]
["Palanpur - Udapiur"]
["Gwalior - Shivpuri"]
["Jhansi-Kajuraho"]
["Kishangarh - Udaipur"]
["Kishangarh - Udaipur"]
["Mokama - Munger"]
["Mokama - Munger"]
["Mokama - Munger"]
["Rampur - Kathgodam"]
["Karaikudi - Ramanathapuram"]
["Karaikudi - Ramanathapuram"]
["Karaikudi - Ramanathapuram"]
["Trichy - Karaikudi"]
["Aurangabad - Dhule"]
["Meerut - Bulanshahar"]
["Meerut - Bulanshahar"]
["Dindigul - Theni"]
["Dindigul - Theni"]
["Dindigul - Theni"]
["Dindigul - Theni"]
["Dindigul - Theni"]
["Vikravandi - Thanjavur"]
["Vikravandi - Thanjavur"]
["Vikravandi - Thanjavur"]
["Vikravandi - Thanjavur"]
["Vikravandi - Thanjavur"]
["JNPT Project"]
["CHANDIKHOLE - PARADEEP"]
["Chandikhole - Paradip"]
["Coimbatore - Mettupalayam"]
["Rohtak - Bawal "]
["Kishangarh - Udaipur"]
["Bhuj - Bhachau"]
["Bhuj - Bhachau"]
["Bhuj - Bhachau"]
["Bhuj - Bhachau"]
["Ahmedabad - Vadodara"]
["Ahmedabad - Vadodara"]
["Halol-Netrang"]
["Halol-Netrang"]
["Netrang - Halol"]
["Netrang - Halol"]
["Netrang - Halol"]
["Vapi - Netrang"]
["Vapi - Netrang"]
["Vapi - Netrang"]
["Vapi - Netrang"]
["Vapi - Netrang"]
["Ahmedabad - Viramgam-Maliya "]
["Ahmedabad - Viramgam-Maliya "]
["Ahmedabad - Viramgam-Maliya "]
["Bagodara - Vasad"]
["Bagodara - Vasad"]
["Bagodara - Vasad"]
["Bagodara - Vasad"]
["Bagodara - Vasad"]
["Bagodara - Vasad"]
["Bagodara - Vasad"]
["Radahanpur - Patan "]
["Ahmedabad - Viramgam-Maliya "]
["Rajkot - Jamnagar - Vadinar "]
["Rajkot - Jamnagar - Vadinar "]
["Rajkot - Jamnagar - Vadinar "]
["Rajkot - Jamnagar - Vadinar "]
["Gandidham-Mundra"]
["Deshalpur - Jakau"]
["Deshalpur - Jakau"]
["JNPT Project"]
["Radahanpur - Patan "]
["Panipat Elevated Corridor "]
[" Barwa Adda-Panagarh"]
[" Barwa Adda-Panagarh"]
[" Barwa Adda-Panagarh"]
["Allahabad – Varanasi "]
["Allahabad – Varanasi "]
["Allahabad – Varanasi "]
["Allahabad – Varanasi "]
["Allahabad – Varanasi "]
["Aurangabad-Barwadda"]
["Barwa Adda-Panagarh"]
["Handia-Varanasi"]
["MP/Maharashtra-Dhule"]
["MP/Maharashtra-Dhule"]
["MP/Maharastra-Dhule"]
["MP/Maharastra-Dhule"]
["MP/Maharastra-Dhule"]
["Pimpalgaon - Nashik- Gonde "]
["Pimpalgaon - Nashik- Gonde "]
["Pimpalgaon - Nashik- Gonde "]
["Amra Marg-Navi Mumbai Airport-JNPT"]
["Amra Marg-Navi Mumbai Airport-JNPT"]
["Chitradurga-Harihar-Haveri"]
["Dharwad - Belgaum"]
["PTAS Walajahpet - Poonamallee "]
["PTAS Walajahpet - Poonamallee "]
["Chennai-Tada"]
["Chennai-Tada"]
["Chennai-Tada"]
["Ennore Thalchur "]
["Icchapuram – Anandapuram "]
["Icchapuram – Anandapuram "]
["Icchapuram – Anandapuram "]
["Icchapuram – Anandapuram "]
["Jarpokaria- Baleswar"]
["Jarpokaria- Baleswar"]
["Vijayawada-Gundugolanu"]
["Vijayawada-Gundugolanu"]
["Vijayawada-Gundugolanu"]
["Amravati-Maharashtra/Gujurat-Border"]
["Amravati-Maharashtra/Gujurat-Border"]
["Amravati-Maharashtra/Gujurat-Border"]
["Amravati-Maharashtra/Gujurat-Border"]
["Amravati-Maharashtra/Gujurat-Border"]
["Amravati-Maharashtra/Gujurat-Border"]
["Amravati-Maharashtra/Gujurat-Border"]
["Baharagora-Kharagpur"]
["Bahargora to Sambalpur-Jabalpur"]
["Bahargora to Sambalpur-Jabalpur"]
["Bahargora to Sambalpur-Jabalpur"]
["Bahargora to Sambalpur-Jabalpur"]
["Bahargora to Sambalpur-Jabalpur"]
["Dhankuni-Kharagpur"]
["Jadcharla to Kottakota"]
["Jadcharla to Kottakota"]
["Jadcharla to Kottakota"]
["JADCHERLA-KOTHAKOTA"]
["KRISHNAGIRI-THOPPUR"]
["Lakhnadon – Jabalpur – Rewa – Hanumana"]
["Lakhnadon – Jabalpur – Rewa – Hanumana"]
["Lakhnadon – Jabalpur – Rewa – Hanumana"]
["Lakhnadon – Jabalpur – Rewa – Hanumana"]
["Lakhnadon – Jabalpur – Rewa – Hanumana"]
["Lakhnadon – Jabalpur – Rewa – Hanumana"]
["Lakhnadon – Jabalpur – Rewa – Hanumana"]
["Lakhnadon – Jabalpur – Rewa – Hanumana"]
["Kishangarh-Udaipur-Ahmedabad"]
["Kishangarh-Udaipur-Ahmedabad"]
["Kishangarh-Udaipur-Ahmedabad"]
["Kishangarh-Udaipur-Ahmedabad"]
["Kishangarh-Udaipur-Ahmedabad"]
["Kishangarh-Udaipur-Ahmedabad"]
["RA-MSK-Narmada"]
["vododara - baruch"]
["vododara - baruch"]
["Solapur–Sangareddy"]
["Solapur–Sangareddy"]
["Solapur–Sangareddy"]
["Solapur–Sangareddy"]
["Vijayawada-Gundugolanu"]
["Bhopal - Obaidullaganj – Jabalpur"]
["Bhopal - Obaidullaganj – Jabalpur"]
["Bhopal - Obaidullaganj – Jabalpur"]
["Bhopal - Obaidullaganj – Jabalpur"]
["Bhopal - Obaidullaganj – Jabalpur"]
["Bhopal - Obaidullaganj – Jabalpur"]
["Kota-Dhara-Jhalwar"]
["Solapur-Bijapur"]
["Solapur-Bijapur"]
["Beawar-Pali-Pindwara"]
["Beawar-Pali-Pindwara"]
["Beawar-Pali-Pindwara"]
["Beawar-Pali-Pindwara"]
["Beawar-Pali-Pindwara"]
["Goa/Karnataka Border – Kundapur "]
["Birmitrapur-Barkote"]
["Birmitrapur-Barkote (125 km)"]
["Birmitrapur-Barkote (125 km)"]
["bakhtiarpur-khagari"]
["bakhtiarpur-khagari"]
["Rajauli-Bhaktiyarpur"]
["Mahulia-Baharagora"]
["Birmitrapur-Barkote (125 km)"]
["Birmitrapur-Barkote (125 km)"]
["Birmitrapur-Barkote (125 km)"]
["Birmitrapur-Barkote (125 km)"]
["Birmitrapur-Barkote (125 km)"]
["Birmitrapur-Barkote (125 km)"]
["Cuttack to Sambalpur"]
["Cuttack-Angul"]
["Cuttack-Angul"]
["Cuttack-Angul"]
["Cuttack-Angul"]
["Vikravandi to Thanjavur"]
["Krishnagiri Walajahpet"]
["Krishnagiri Walajahpet"]
["Krishnagiri-Walajahpet"]
["Krishnagiri–Walajahpet"]
["Devihalli-Hassan"]
["Devihalli-Hassan"]
["TAS Madurai – Ramanathapuram "]
["Varanasi-Sultanpur"]
["Varanasi-Sultanpur"]
[" Muzaffarnagar-Haridwar"]
["Ahmedabad-Godra"]
["Ahmedabad-Godra"]
["Ahmedabad-Godra"]
["Ahmedabad-Godra"]
["Godra - Guj/MP Border"]
["Godra - Guj/MP Border"]
["Godra - Guj/MP Border"]
["Indore- Guj/MP Border"]
["Indore- Guj/MP Border"]
["Indore- Guj/MP Border"]
[" Ambala-Kaithal"]
["JODHPUR - PALI "]
["JODHPUR - PALI "]
["Coimbatore – Mettupalayam"]
["UP/Haryana_Border-Yamunanagar-Shaha_Barwala-Panchkula"]
["Panna – Satna "]
["Siddi - Singrouli "]
["Kishangarh-Udaipur-Ahmedabad"]
["Kishangarh-Udaipur-Ahmedabad"]
["Rampur - Kathgodam "]
["Raipur – Bilaspur"]
["Raipur – Bilaspur"]
["Raipur – Bilaspur"]
["Aurangabad-Dhule"]
["Aurangabad-Dhule"]
["Aurangabad-Dhule"]
["Solapur – Yedishi "]
["Solapur – Yedishi "]
["Yedshi-Aurangabad"]
["Yedshi-Aurangabad"]
["Yedshi-Aurangabad"]
["Yedshi-Aurangabad"]
["Panikoili-Rimuli"]
["Panikoili-Rimuli"]
["Panikoili-Rimuli"]
["Panikoili-Rimuli"]
["Panikoili-Rimuli"]
["Panikoili-Rimuli"]
["Panikoili-Rimuli"]
["Panikoili-Rimuli"]
["Thanjavur to Manamadurai"]
["Vikravandi to Thanjavur"]
["Vikravandi-Thanjavur"]
["Vikravandi-Thanjavur"]
["MJPRCL Roads"]
["MJPRCL Roads"]
["MJPRCL Roads"]
["MJPRCL Roads"]
["Chandhikhole-Paradeep"]
["Panipat – Rohtak "]
["Panipat – Rohtak "]
["Kishangarh-Udaipur-Ahmedabad"]
[" Samakhiali-Gandhidham"]
[" Samakhiali-Gandhidham"]
[" Samakhiali-Gandhidham"]
["Samakhiali-Gandhidham"]
["Samakhiali-Gandhidham"]
["Samakhiali-Gandhidham"]
["Jetput-Somnath"]
["Jetput-Somnath"]
["Jetput-Somnath"]
["Jetput-Somnath"]
["Belgaum-Dharwad"]
["Amra Marg-Navi Mumbai Airport-JNPT"]
["Amra Marg-Navi Mumbai Airport-JNPT"]
["Kishangarh-Udaipur-Ahmedabad"]
["Kishangarh-Udaipur-Ahmedabad"]
["Kishangarh-Udaipur-Ahmedabad"]
["Kishangarh-Udaipur-Ahmedabad"]
["Kishangarh-Udaipur-Ahmedabad"]
["Kishangarh-Udaipur-Ahmedabad"]
["Kishangarh-Udaipur-Ahmedabad"]
["Kishangarh-Udaipur-Ahmedabad"]
["Kishangarh-Udaipur-Ahmedabad"]
["Kishangarh-Udaipur-Ahmedabad"]
["Kishangarh-Udaipur-Ahmedabad"]
["Kishangarh-Udaipur-Ahmedabad"]
["Kishangarh-Udaipur-Ahmedabad"]
["Kishangarh-Udaipur-Ahmedabad"]
["Kishangarh-Udaipur-Ahmedabad"]
["Kishangarh-Udaipur-Ahmedabad"]
["Kishangarh-Udaipur-Ahmedabad"]
["Kishangarh-Udaipur-Ahmedabad"]
["Kishangarh-Udaipur-Ahmedabad"]
["Kishangarh-Udaipur-Ahmedabad"]
["Kishangarh-Udaipur-Ahmedabad"]
["Kishangarh-Udaipur-Ahmedabad"]
["Kishangarh-Udaipur-Ahmedabad"]
["Bagodara-Dhandhuka-Bhavnagar"]
["Kota-Dhara-Jhalwar"]
["UP/Haryana_Border-Yamunanagar-Shaha_Barwala-Panchkula"]
["Halol-Godhra-Shamlaji"]
["Halol-Godhra-Shamlaji"]
["Halol-Godhra-Shamlaji"]
["Halol-Godhra-Shamlaji"]
["Halol-Godhra-Shamlaji"]
["Bagodhara-Bhavnagar"]
["Ahmedabad - Viramgam-Maliya "]
["Ahmedabad - Viramgam-Maliya "]
["Ahmedabad - Viramgam-Maliya "]
["Kishangarh-Udaipur-Ahmedabad"]
["Chandhikhole-Paradeep"]
["Kishangarh-Udaipur-Ahmedabad"]
["Ahmedabad - Viramgam-Maliya "]
["Bagodhara-Bhavnagar"]
["Bagodhara-Bhavnagar"]
["Bagodhara-Bhavnagar"]
["Bagodhara-Bhavnagar"]
["Bagodhara-Bhavnagar"]
["Rajkot -Jamnagar - Vadinar"]
["Rajkot -Jamnagar - Vadinar"]
["Rajkot -Jamnagar - Vadinar"]
["Rajkot -Jamnagar - Vadinar"]
["Rajkot -Jamnagar - Vadinar"]
["Bagodara-Dhandhuka-Bhavnagar"]
["Bagodara-Dhandhuka-Bhavnagar"]
["Bagodara-Dhandhuka-Bhavnagar"]
["Bhuj-Bhachau"]
["Bhuj-Bhachau"]
["Amra Marg-Navi Mumbai Airport-JNPT"]
["MJPRCL Roads"]
["RA-MSK-Narmada"]
["Kishangarh-Udaipur-Ahmedabad"]
["Agra-Bharatpur"]
["Ambala-Khanna"]
["Ambala-Zirakpur"]
["Amritsar-Wagah"]
["Khanna-Jallandhar"]
["Khanna-Jallandhar"]
["Khanna-Jallandhar"]
["New Two Lane Road Guna Bypass"]
["Panipat Elevated "]
["Panipat-Ambala"]
["Tinidvanam-Ulundurpet"]
["Badarpur-Kosi     "]
["Barachatti - Gorahar"]
["Barun - Barachatti"]
["Barwa- Adda-Panagarh   "]
["Barwa- Adda-Panagarh   "]
["Bhaunti-Fatehpur"]
["Budbud-Pulsit"]
["Etawah-Sikandera"]
["Ganga Bridge (Varanasi) (GQ)"]
["Gorhar to Barwadda  (Km. 320.000 to Km. 398.750) "]
["Handia-Rajatalab"]
["Kosi-Agra   "]
["Mohania-Barun"]
["Palsit-Dankuni"]
["Rampur Thariwan- Kokhraj "]
["Shastri Bridge (Allahabad) (GQ)"]
["Shikohabad - Etawah & Etawah Bypass"]
["Sikandera- Bhaunti"]
["Tada - Nellore "]
["Tada - Nellore "]
["Tada - Nellore "]
["Tundla-Makhanpur"]
["Varanasi-Monia"]
["Vivekananad Bridge"]
["Agra Gwalior"]
["Agra Gwalior"]
["Agra Gwalior"]
["Agra-Dholpur"]
["Indore-Khalghat "]
["Pimpalgoan - Dhule"]
["Anthrasanahally - Tavarakere"]
["Belgam-Maharastra Border "]
["Gabbur - Devegiri"]
["Hirebagewadi-Dharwad"]
["Kanchipuram-Chennai    "]
["Kanchipuram-Walajapet"]
["Satara-Kagal * (GQ)"]
["Satara-Khandala "]
["Tavarekare - Daddasidanahally"]
["Tumkar-Neelmangla  "]
["Tumkar-Neelmangla  (GQ) "]
["Westerly Byepass"]
["Ankapalli -Vishakhapatnam"]
["Ankapalli -Vishakhapatnam"]
["Ankapalli -Vishakhapatnam *      "]
["Bhubaneswar-Cuttack-Jagatpur"]
["Bhubaneswar-Cuttack-Jagatpur"]
["Bhubaneswar-Cuttack-Jagatpur"]
["Bhubaneswar-Cuttack-Jagatpur     "]
["Bommuru- Gondugolanu"]
["Chetia-Bhadrak"]
["Chetia-Bhadrak (Bhuwneshwar)"]
["Chilkaluripet-Vijayawada    "]
["Kavali-Nellore"]
["Kavalli-Ongole   "]
["Kolaghat - Kharagpur"]
["Nadigama- Icchapuram       "]
["Ongole-Chilkaluripet    "]
["Rajamundry-Tuni "]
["ROB Kishangarh"]
["ROB Kishangarh(Kishangarh) (OTHERS)  "]
["Srikakulam"]
["Srikakulam - Chilakpalem"]
["Srikakulam-Icchapuram"]
["Sunakhala-Bhubaneswar"]
["Tada-Nellore (GQ)"]
["Tuni-Ankapalli"]
["Vijayawada-Gundugolanu(31/8Km)    "]
["Vijayawada-Gundugolanu(53/3Km)    "]
["Visakhapatnam Port Connectivity"]
["Visakhapatnam Port Connectivity"]
["Visakhapatnam-Champawati"]
["Amravati Bypass"]
["Durg Bypass"]
["Durg Bypass  (OTHERS)"]
["Jaipur-Mahuva"]
["Jaipur-Mahuva"]
["Kolaghat - Kharagpur"]
["Kondhali-Talegaon"]
["Tada-Chennai"]
["Adloor Yellareddy-Gundla Pochampally"]
["AP/ Karnataka Border - Devanhalli"]
["Dindigul Bypass-Samyanallore (TN-05)"]
["Hosour-Krishnagiri"]
["Hyderabad-Bangalore section"]
["Hyderabad-Bangalore section"]
["IslamNagar-Kadtal"]
["Jatcherla - Kotakatta (Western Andhra)"]
["Kadtal-Armur"]
["Karur Bypass - Dindigul Bypass"]
["Khooni Bridge "]
["Khooni Bridge (5.2.08)"]
["Kooni River\nNagpu-Hyderabad Section"]
["Kothakota bypass–Kurnool"]
["Kothakota bypass–Kurnool"]
["Krishnagiri-Thopurghat "]
["Marur-AP/Karnataka \nBorder"]
["Namakkal – Karur"]
["Omallur-Namakkal "]
["Thondapali-Jedcherla"]
["Waghadhi Nallah "]
["Waghdi Nallah Bridge (23.3.08)"]
["Ahemdabad Vadodara "]
["Bharuch-Surat"]
["Bharuch-Surat"]
["Bharuch-Surat    "]
["Chalthan-Wagaldhara"]
["Gurgaon-Kotputli     "]
["Gurgaon-Kotputli     "]
["Gurgaon-Kotputli     "]
["Himmatnagar-Chiloda"]
["Jaipur Bypass"]
["Jaipur Bypass"]
["Jaipur-Kishangarh (GQ)"]
["Jaipur-Mahuva"]
["Jetpur-Gondal-Rajkot"]
["Jetpur-Gondal-Rajkot"]
["Jetpur-Gondal-Rajkot"]
["Kajali-Manor   "]
["Kajali-Manor   "]
["Kherwara-Ratanpur"]
["Kherwara-Ratanpur"]
["Kotputli-Chandwazi   "]
["Kotputli-Jaipur Bypass   "]
["Manor- Dahisar"]
["Manor- Dahisar  "]
["Ratanpur-Himatnagar "]
["Udaipur-Kherwara"]
["Vadodara-Bharuch     "]
["Wagaldhara-Kajali"]
["Wagaldhara-Kajali"]
["Watrak Bridge"]
["Nadigama-Vijaywada"]
["Nadigama-Vijaywada  (OTHERS)"]
["Bharatpur-Mahua "]
["Bharatpur-Mahua "]
["Abu road - Pindwara"]
["Palanpur/ Khemana -  Aburoad "]
["Radhanpur-Palanpur"]
["Adesar-Samakhayali"]
["Radhanpur-Adesar"]
["Radhanpur-Adesar (Palanpur)"]
["Radhanpur-Palanpur"]
["Garhmukteshwar-Moradabad"]
["Ghaziabad-Hapur  & Hapur Bypass      "]
["Ghaziabad-Hapur & Hapur Bypass      "]
["Kali Nadi Bridge  "]
["Kali Nadi Bridge  (OTHERS)"]
["Moradabad Bypass"]
["Amola - Jhansi Bypass"]
["Amola - Jhansi Bypass"]
["Lucknow-Kanpur"]
["Cable stay Bridge at Naini  "]
["Cable stay Bridge at Naini  (OTHERS)"]
["Cable Stayed Bridge across River Yamuna at Allahabad"]
["Chennai Bypass"]
["Tambaram- Tindivaram"]
["Tambaram- Tindivaram"]
["Ulundrupet-Padalur"]
["Ambur-Walajahpet"]
["Krishnagiri-Ambur"]
["Krishnagiri-Ambur"]
["Kumarapalayam Bypass-Chengapalli"]
["Darbhanga-Sakari section"]
["Gosaghat Bridge "]
["Gosaghat Bridge (7.2.08)"]
["Dankuni-Kolaghat"]
["Dantan - Balasore"]
["Dantan - Balasore"]
["Dantun-Kharagpur"]
["Bichoor-Bijoliya"]
["Bijoliya-Kharipur"]
["Chittorgarh-Bichoor"]
["Derumata Temple - Gadawali River"]
["Derumata Temple - Gadawali River"]
["Gadawali River-Raj/MP Boarder"]
["Gadawali River-Raj/MP Boarder"]
["Jaswantgarh-Debari"]
["Kota Bypass-Derumata Temple"]
["Kota Bypass-Derumata Temple"]
["Pindwara-Jaswantgarh"]
["Rithola-Udaipur"]
["Bhilwara-Chittorgarh"]
["Bhilwara-Chittorgarh                           "]
["Hirebagewadi-Hattargi"]
["Hirebagewadi-Hattargi"]
["Ghagraghat Bridge  "]
["Ghagraghat Bridge  (EW) "]
["Jawahar Lal Nehru Port Trust"]
["Jawahar Lal Nehru Port Trust-II"]
["Tovarankurichi bypass end to Madurai"]
["Trichi - Tovarankurichi "]
["Chandikhol-Paradip"]
["Raj/MP Boarder-Amola Vill "]
["Raj/MP Boarder-Amola Vill "]
["Chittorgarh Bypass"]
["Chittorgarh Bypass"]
["Kishangarh-Bhilwara"]
["Kishangarh-Bhilwara                         "]
["Kishangarh-Bhilwara"]
["Kishangarh-Bhilwara"]
["Bamanbore – Garamore "]
["Samakhayali- Gandhidham    "]
["Bhiladi-Jetpur"]
["Porbandar - Bhiladi"]
["Supedi Bridge (3.2.08)"]
["AV Expressway Phase I    "]
["AV Expressway Phase I    "]
["AV Expressway Phase II"]
["AV Expressway Phase II"]